bitfinex/quotes_BTCUSD_20240607
["timestamp","ask_amount","ask_price","bid_price","bid_amount"]
[1717745831085,1.58014607,71209.0,71208.0,0.000946]
[1717745831272,1.72526394,71209.0,71208.0,0.000946]
[1717745831743,1.58014607,71209.0,71208.0,0.000946]
[1717745832475,1.68487345,71209.0,71208.0,0.000946]
[1717745834389,1.58014607,71209.0,71208.0,0.000946]
[1717745834599,1.51214607,71209.0,71208.0,0.000946]
[1717745834770,1.58014607,71209.0,71208.0,0.000946]
[1717745837956,1.58014241,71209.0,71208.0,0.000946]
[1717745840634,1.58014241,71209.0,71202.0,0.000946]
[1717745840635,0.945617,71203.0,71202.0,0.000946]
[1717745840848,1.44187581,71203.0,71202.0,0.000946]
[1717745840988,1.50545442,71203.0,71202.0,0.000946]
[1717745841193,1.65545442,71203.0,71202.0,0.000946]
[1717745841837,1.5507417,71203.0,71202.0,0.000946]
[1717745842072,1.53985092,71203.0,71202.0,0.000946]
[1717745842251,1.55385092,71203.0,71202.0,0.000946]
[1717745842398,1.57874178,71203.0,71202.0,0.000946]
[1717745842816,1.51074178,71203.0,71202.0,0.000946]
[1717745845647,1.59449006,71203.0,71202.0,0.000946]
[1717745846607,1.59468258,71203.0,71202.0,0.000946]
[1717745848847,1.60417558,71203.0,71202.0,0.000946]
[1717745851322,1.5204273,71203.0,71202.0,0.000946]
[1717745854391,1.62514002,71203.0,71202.0,0.000946]
[1717745854833,1.69683484,71203.0,71202.0,0.000946]
[1717745855270,1.57117268,71203.0,71202.0,0.000946]
[1717745856053,1.58802137,71203.0,71202.0,0.000946]
[1717745857707,1.58802137,71203.0,71202.0,1e-06]
[1717745857708,1.86890837,71203.0,71202.0,1e-06]
[1717745859506,0.922359,71202.0,71195.0,0.009493]
[1717745859722,0.33454014,71201.0,71195.0,0.009493]
[1717745859956,0.06712121,71200.0,71195.0,0.009493]
[1717745860165,1.18238514,71200.0,71195.0,0.009493]
[1717745860389,1.28238514,71200.0,71195.0,0.009493]
[1717745860590,1.3351623,71200.0,71195.0,0.009493]
[1717745860966,1.3351623,71200.0,71192.0,0.32656873]
[1717745860967,0.238,71199.0,71192.0,0.22656873]
[1717745861173,0.846815,71193.0,71192.0,0.22656873]
[1717745861392,1.34285514,71193.0,71192.0,0.22656873]
[1717745861599,1.3956323,71193.0,71192.0,0.22656873]
[1717745862253,1.6765583,71193.0,71192.0,0.22656873]
[1717745862953,1.6905583,71193.0,71192.0,0.22656873]
[1717745864064,1.60414694,71193.0,71192.0,0.22656873]
[1717745864270,1.84975149,71193.0,71192.0,0.22656873]
[1717745865949,1.84975149,71193.0,71192.0,0.22690515]
[1717745866557,1.85081774,71193.0,71192.0,0.22690515]
[1717745867652,1.70569987,71193.0,71192.0,0.22690515]
[1717745870051,1.83123547,71193.0,71192.0,0.22690515]
[1717745870712,1.70569987,71193.0,71192.0,0.22690515]
[1717745871391,1.70569987,71193.0,71191.0,1.5e-07]
[1717745871392,0.983255,71192.0,71191.0,1.5e-07]
[1717745871589,1.73134947,71192.0,71191.0,1.5e-07]
[1717745872501,1.60581387,71192.0,71191.0,1.5e-07]
[1717745872729,1.61981387,71192.0,71191.0,1.5e-07]
[1717745872956,1.67292623,71192.0,71191.0,1.5e-07]
[1717745873195,1.68692623,71192.0,71191.0,1.5e-07]
[1717745873439,1.61981387,71192.0,71191.0,1.5e-07]
[1717745873643,1.81869828,71192.0,71191.0,1.5e-07]
[1717745874766,1.80469828,71192.0,71191.0,1.5e-07]
[1717745875015,1.81869828,71192.0,71191.0,1.5e-07]
[1717745875224,1.83269828,71192.0,71191.0,1.5e-07]
[1717745877074,0.140518,71165.0,71164.0,0.61369515]
[1717745877272,0.17424115,71165.0,71164.0,0.5391]
[1717745877632,0.17424115,71165.0,71164.0,0.4797]
[1717745878009,0.17424115,71165.0,71164.0,0.5323]
[1717745878625,0.18524115,71165.0,71164.0,0.5323]
[1717745878831,0.45527815,71165.0,71164.0,0.5323]
[1717745879239,0.48227815,71165.0,71164.0,0.5323]
[1717745880992,0.48227815,71165.0,71164.0,0.53234156]
[1717745881441,0.448555,71165.0,71164.0,0.53234156]
[1717745881653,0.48243538,71165.0,71164.0,0.53234156]
[1717745883240,0.48245439,71165.0,71164.0,0.53234156]
[1717745883472,0.48245439,71165.0,71164.0,0.31234156]
[1717745883687,0.48245439,71165.0,71164.0,0.33234156]
[1717745884309,0.46945439,71165.0,71164.0,0.33234156]
[1717745884695,0.46845439,71165.0,71164.0,0.33234156]
[1717745885148,0.48245439,71165.0,71164.0,0.53234156]
[1717745886209,0.46945439,71165.0,71164.0,0.53234156]
[1717745886424,0.45545439,71165.0,71164.0,0.53234156]
[1717745887286,0.52570439,71165.0,71164.0,0.53234156]
[1717745887941,0.52570439,71165.0,71164.0,0.53527156]
[1717745888161,0.53970439,71165.0,71164.0,0.53527156]
[1717745889979,0.56228661,71165.0,71164.0,0.53527156]
[1717745890224,0.56228661,71165.0,71164.0,0.31527156]
[1717745890455,0.56228661,71165.0,71164.0,0.33527156]
[1717745891990,0.56228661,71165.0,71164.0,0.53527156]
[1717745892416,0.22499961,71165.0,71164.0,0.60327156]
[1717745892638,0.20241739,71165.0,71164.0,0.60327156]
[1717745894629,0.20241739,71165.0,71164.0,0.61327156]
[1717745895495,0.20241739,71165.0,71164.0,0.68786671]
[1717745897611,0.20241739,71165.0,71164.0,0.60986671]
[1717745897827,0.20241739,71165.0,71164.0,0.67786671]
[1717745900080,0.20241739,71165.0,71164.0,0.68786671]
[1717745900282,0.20241739,71165.0,71164.0,0.67786671]
[1717745900486,0.20241739,71165.0,71164.0,0.68786671]
[1717745903556,0.20241739,71165.0,71164.0,0.67786671]
[1717745903959,0.20241739,71165.0,71164.0,0.68786671]
[1717745905876,0.06189939,71165.0,71164.0,0.68786671]
[1717745907374,0.06189939,71165.0,71164.0,0.67786671]
[1717745907598,0.06189939,71165.0,71164.0,0.61327156]
[1717745907796,0.06189939,71165.0,71164.0,0.68786671]
[1717745908169,0.06189939,71165.0,71164.0,0.68881271]
[1717745908371,0.06275939,71165.0,71164.0,0.68881271]
[1717745909532,0.06275939,71165.0,71164.0,0.67881271]
[1717745909757,0.04187007,71175.0,71174.0,0.33]
[1717745910001,0.04187007,71178.0,71177.0,0.32]
[1717745910208,0.04187007,71178.0,71176.0,0.28029515]
[1717745910209,0.140494,71177.0,71176.0,0.17459515]
[1717745910445,0.06280511,71180.0,71175.0,0.1]
[1717745910446,0.372296,71176.0,71175.0,0.1]
[1717745910675,0.372296,71176.0,71175.0,0.32]
[1717745911958,0.400296,71176.0,71175.0,0.32]
[1717745912190,0.44216607,71176.0,71175.0,0.32]
[1717745912396,0.44216607,71176.0,71175.0,0.1]
[1717745912794,0.140502,71173.0,71172.0,0.1]
[1717745913292,0.18238881,71173.0,71172.0,0.1]
[1717745913508,0.16308321,71173.0,71172.0,0.1]
[1717745914040,0.16608321,71173.0,71172.0,0.101]
[1717745915047,0.41928321,71173.0,71172.0,0.102]
[1717745915570,0.46116844,71173.0,71172.0,0.102]
[1717745915772,0.46116844,71173.0,71172.0,0.002]
[1717745915891,0.41928321,71173.0,71172.0,0.002]
[1717745917052,0.44228321,71173.0,71172.0,0.002]
[1717745917264,0.50511343,71173.0,71172.0,0.002]
[1717745917710,0.44228321,71173.0,71172.0,0.002]
[1717745918130,0.44228321,71173.0,71172.0,0.022]
[1717745918356,0.44228321,71173.0,71172.0,0.002]
[1717745919488,0.44228321,71173.0,71172.0,0.022]
[1717745919671,0.44228321,71173.0,71172.0,0.222]
[1717745919955,0.46915343,71173.0,71172.0,0.222]
[1717745920176,0.46915343,71173.0,71172.0,0.022]
[1717745921569,0.46915343,71173.0,71172.0,0.222]
[1717745922632,0.46915343,71173.0,71172.0,0.022]
[1717745923263,0.48311026,71173.0,71172.0,0.022]
[1717745923807,0.48311026,71173.0,71172.0,0.222]
[1717745924456,0.24391026,71173.0,71172.0,0.222]
[1717745924870,0.27183699,71173.0,71172.0,0.222]
[1717745925922,0.27183699,71173.0,71172.0,0.022]
[1717745926154,0.27183699,71173.0,71172.0,0.222]
[1717745926795,0.27183699,71173.0,71172.0,0.022]
[1717745927454,0.27183699,71173.0,71172.0,0.002]
[1717745928127,0.27183699,71173.0,71172.0,0.022]
[1717745928509,0.28867843,71173.0,71172.0,0.022]
[1717745928722,0.28867843,71173.0,71172.0,0.002]
[1717745928932,0.28867843,71173.0,71172.0,0.022]
[1717745929171,0.24679487,71173.0,71172.0,0.002]
[1717745929835,0.28868583,71173.0,71172.0,0.222]
[1717745930483,0.24679487,71173.0,71172.0,0.222]
[1717745930697,0.28868883,71173.0,71172.0,0.222]
[1717745931189,0.24679487,71173.0,71172.0,0.222]
[1717745931407,0.24679487,71173.0,71172.0,0.002]
[1717745932221,0.24679487,71173.0,71172.0,0.222]
[1717745932460,0.24679487,71173.0,71172.0,0.002]
[1717745932683,0.61672153,71173.0,71172.0,0.002]
[1717745932890,0.66584181,71173.0,71172.0,0.002]
[1717745933095,0.72208981,71173.0,71172.0,0.002]
[1717745933321,0.65408981,71173.0,71172.0,0.002]
[1717745935916,0.93509481,71173.0,71172.0,0.002]
[1717745936353,1.03987131,71173.0,71172.0,0.002]
[1717745936555,1.03987131,71173.0,71164.0,0.00391756]
[1717745936556,0.281012,71172.0,71164.0,0.00391756]
[1717745936804,0.3078,71165.0,71164.0,0.00391756]
[1717745937019,0.61905141,71165.0,71164.0,0.00391756]
[1717745937229,0.63727491,71165.0,71164.0,0.00391756]
[1717745937863,0.63727491,71165.0,71164.0,0.00691756]
[1717745938151,0.63728539,71165.0,71164.0,0.00691756]
[1717745938266,1.05884039,71165.0,71164.0,0.00691756]
[1717745938478,1.07284039,71165.0,71164.0,0.00491756]
[1717745938942,1.08284039,71165.0,71164.0,0.00591756]
[1717745940033,1.06884039,71165.0,71164.0,0.00491756]
[1717745940360,1.07684039,71165.0,71164.0,0.00491756]
[1717745940568,1.20346255,71165.0,71164.0,0.00491756]
[1717745940995,1.07684039,71165.0,71164.0,0.004876]
[1717745942291,1.07391039,71165.0,71164.0,0.001946]
[1717745942723,1.17860099,71165.0,71164.0,0.001946]
[1717745944136,1.17858955,71165.0,71164.0,0.001946]
[1717745945473,1.07391039,71165.0,71164.0,0.00246284]
[1717745945700,1.09931524,71165.0,71164.0,0.00246284]
[1717745946137,1.21640553,71165.0,71164.0,0.00246284]
[1717745947062,1.26272855,71165.0,71164.0,0.00246284]
[1717745948411,1.14563826,71165.0,71164.0,0.00246284]
[1717745948611,1.09931524,71165.0,71164.0,0.00246284]
[1717745948816,1.18301378,71165.0,71164.0,0.00246284]
[1717745949187,1.20023118,71165.0,71164.0,0.00246284]
[1717745949622,1.11653264,71165.0,71164.0,0.00246284]
[1717745949904,1.20022599,71165.0,71164.0,0.00246284]
[1717745952753,1.11653264,71165.0,71164.0,0.00246284]
[1717745953815,1.15837829,71165.0,71164.0,0.00246284]
[1717745955632,0.91857829,71165.0,71164.0,0.02246284]
[1717745956218,0.85350829,71165.0,71164.0,0.02246284]
[1717745956461,0.81166264,71165.0,71164.0,0.00246284]
[1717745956633,0.78625779,71165.0,71164.0,0.00246284]
[1717745956835,0.8535214,71165.0,71164.0,0.00246284]
[1717745957424,0.81166264,71165.0,71164.0,0.00246284]
[1717745959839,0.78625779,71165.0,71164.0,0.00246284]
[1717745960081,0.81166264,71165.0,71164.0,0.00246284]
[1717745963635,0.87442884,71165.0,71164.0,0.00246284]
[1717745964220,0.44897291,71165.0,71164.0,0.22246284]
[1717745964423,0.38620671,71165.0,71164.0,0.00246284]
[1717745964620,0.34672146,71165.0,71164.0,0.00246284]
[1717745964828,0.44402256,71165.0,71164.0,0.00246284]
[1717745965204,0.40211536,71165.0,71164.0,0.00246284]
[1717745967315,0.46488156,71165.0,71164.0,0.00246284]
[1717745968403,1.04375665,71165.0,71164.0,0.00246284]
[1717745968611,1.28139045,71165.0,71164.0,0.00246284]
[1717745968819,1.43233177,71165.0,71164.0,0.00246284]
[1717745969030,1.32771508,71165.0,71164.0,0.00246284]
[1717745969698,1.22599655,71165.0,71164.0,0.00246284]
[1717745969902,1.38642123,71165.0,71164.0,0.00246284]
[1717745970105,1.43271695,71165.0,71164.0,0.00246284]
[1717745970230,1.25581496,71165.0,71164.0,0.00246284]
[1717745970431,1.20951924,71165.0,71164.0,0.00246284]
[1717745970867,1.29335492,71165.0,71164.0,0.00246284]
[1717745971402,1.33965064,71165.0,71164.0,0.00246284]
[1717745973632,1.25581496,71165.0,71164.0,0.00246284]
[1717745974862,0.82547796,71165.0,71164.0,0.00246284]
[1717745975065,0.84718224,71165.0,71164.0,0.00246284]
[1717745976562,0.95197684,71165.0,71164.0,0.00246284]
[1717745977354,0.84718224,71165.0,71164.0,0.00246284]
[1717745981169,0.81837395,71165.0,71164.0,0.00246284]
[1717745981344,0.84759275,71165.0,71164.0,0.00246284]
[1717745981747,0.12554003,71170.0,71169.0,0.02]
[1717745981989,0.12554003,71178.0,71172.0,0.2704]
[1717745982166,0.16203431,71173.0,71172.0,0.79281893]
[1717745982376,0.00086,71173.0,71172.0,0.79281893]
[1717745982591,0.00086,71173.0,71172.0,0.79910739]
[1717745983046,0.00086,71173.0,71172.0,0.79281893]
[1717745983252,0.00086,71173.0,71172.0,0.72481893]
[1717745983449,0.00086,71173.0,71172.0,0.71481893]
[1717745983652,0.00086,71173.0,71172.0,0.78281893]
[1717745983857,0.00086,71173.0,71172.0,0.79281893]
[1717745984068,0.00386,71173.0,71172.0,0.79921158]
[1717745984468,0.00386,71173.0,71172.0,0.78921158]
[1717745984682,0.00386,71173.0,71172.0,0.79921158]
[1717745984886,0.00386,71173.0,71172.0,0.71481893]
[1717745985090,0.00886,71173.0,71172.0,0.79281893]
[1717745985462,0.00086,71173.0,71172.0,0.79281893]
[1717745985608,0.00286,71173.0,71172.0,0.79281893]
[1717745985812,0.00586,71173.0,71172.0,0.79281893]
[1717745987108,0.00586,71173.0,71172.0,0.78281893]
[1717745987273,0.00586,71173.0,71172.0,0.4704]
[1717745988894,0.00586,71173.0,71172.0,0.2504]
[1717745989096,0.07386,71173.0,71172.0,0.0187]
[1717745989502,0.00586,71173.0,71172.0,0.2387]
[1717745989707,0.00586,71173.0,71172.0,0.0387]
[1717745989910,0.00386,71173.0,71172.0,0.0187]
[1717745990308,0.00386,71173.0,71172.0,0.0387]
[1717745990515,0.00386,71173.0,71172.0,0.2437]
[1717745991806,0.01249529,71173.0,71172.0,0.2437]
[1717745992035,0.01249529,71173.0,71172.0,0.2387]
[1717745992289,0.02749529,71173.0,71172.0,0.2427]
[1717745992495,0.16699729,71173.0,71172.0,0.2397]
[1717745992877,0.18099729,71173.0,71172.0,0.2397]
[1717745993074,0.18099729,71173.0,71172.0,0.0397]
[1717745994111,0.18099729,71173.0,71172.0,0.0197]
[1717746000100,0.60642122,71173.0,71172.0,0.001]
[1717746000319,0.80559855,71173.0,71172.0,0.001]
[1717746000546,0.81648995,71173.0,71172.0,0.001]
[1717746000768,0.89588995,71173.0,71172.0,0.001]
[1717746001012,1.00075545,71173.0,71172.0,0.001]
[1717746001230,1.38176045,71173.0,71172.0,0.001]
[1717746001460,1.27689495,71173.0,71172.0,0.001]
[1717746001913,1.49489495,71173.0,71172.0,0.001]
[1717746002317,1.49489495,71173.0,71164.0,0.000946]
[1717746002519,0.489555,71165.0,71164.0,0.000946]
[1717746002735,0.66758655,71165.0,71164.0,0.000946]
[1717746002943,0.69058655,71165.0,71164.0,0.000946]
[1717746003374,0.75340006,71165.0,71164.0,0.000946]
[1717746003555,0.75340006,71165.0,71164.0,0.001946]
[1717746003773,0.69058655,71165.0,71164.0,0.001946]
[1717746004210,0.75339941,71165.0,71164.0,0.001946]
[1717746004420,0.76439941,71165.0,71164.0,0.001946]
[1717746004648,0.70158655,71165.0,71164.0,0.001946]
[1717746005041,0.76439786,71165.0,71164.0,0.001946]
[1717746005249,0.92749786,71165.0,71164.0,0.000946]
[1717746005660,0.93849786,71165.0,71164.0,0.000946]
[1717746006819,0.28194193,71165.0,71164.0,0.220946]
[1717746007085,0.21913062,71165.0,71164.0,0.000946]
[1717746007447,0.19715329,71165.0,71164.0,0.000946]
[1717746008135,0.23902862,71165.0,71164.0,0.000946]
[1717746008485,0.19715329,71165.0,71164.0,0.020946]
[1717746008895,0.23902862,71165.0,71164.0,0.020946]
[1717746009760,0.23902862,71165.0,71164.0,0.000946]
[1717746010455,0.26100773,71165.0,71164.0,0.001088]
[1717746010912,0.2191324,71165.0,71164.0,0.001088]
[1717746011534,0.2191324,71165.0,71164.0,0.021088]
[1717746011740,0.2191324,71165.0,71164.0,0.221088]
[1717746011961,0.26100984,71165.0,71164.0,0.221088]
[1717746012377,0.2191324,71165.0,71164.0,0.221088]
[1717746012586,0.26100913,71165.0,71164.0,0.221088]
[1717746012795,0.2191324,71165.0,71164.0,0.221088]
[1717746013014,0.19715329,71165.0,71164.0,0.221088]
[1717746014254,0.17415329,71165.0,71164.0,0.239788]
[1717746014664,0.17415329,71165.0,71164.0,0.249788]
[1717746014879,0.17415329,71165.0,71164.0,0.239788]
[1717746015323,0.16315329,71165.0,71164.0,0.239788]
[1717746015756,0.16515329,71165.0,71164.0,0.249788]
[1717746015973,0.17915329,71165.0,71164.0,0.239788]
[1717746016236,0.16615329,71165.0,71164.0,0.239788]
[1717746016670,0.18015329,71165.0,71164.0,0.239788]
[1717746016894,0.18015329,71165.0,71164.0,0.001088]
[1717746017159,0.33055329,71165.0,71164.0,0.021088]
[1717746017413,0.37243002,71165.0,71164.0,0.001088]
[1717746017641,0.39440887,71165.0,71164.0,0.021088]
[1717746018065,0.33055329,71165.0,71164.0,0.021088]
[1717746018454,0.33055329,71165.0,71164.0,0.001088]
[1717746020701,0.18015329,71165.0,71164.0,0.021088]
[1717746020922,0.18015329,71165.0,71164.0,0.221088]
[1717746021950,0.18031272,71165.0,71164.0,0.221088]
[1717746024694,0.20229013,71165.0,71164.0,0.221088]
[1717746025802,0.18031272,71165.0,71164.0,0.221088]
[1717746026119,0.20229011,71165.0,71164.0,0.221088]
[1717746027066,0.20229011,71165.0,71164.0,0.483388]
[1717746027523,0.18031272,71165.0,71164.0,0.483388]
[1717746033266,0.18031272,71165.0,71164.0,0.48984313]
[1717746036632,0.18031272,71165.0,71164.0,0.483388]
[1717746037253,0.1800317,71165.0,71164.0,0.483388]
[1717746037765,0.18006697,71165.0,71164.0,0.483388]
[1717746038182,0.18006697,71165.0,71164.0,0.019788]
[1717746038396,0.41966697,71165.0,71164.0,0.039788]
[1717746038598,0.44164342,71165.0,71164.0,0.039788]
[1717746040367,0.48356933,71165.0,71164.0,0.039788]
[1717746040571,0.48356933,71165.0,71164.0,0.239788]
[1717746040778,0.48356933,71165.0,71164.0,0.039788]
[1717746041396,0.48356933,71165.0,71164.0,0.239788]
[1717746045335,0.44164342,71165.0,71164.0,0.239788]
[1717746046212,0.43634342,71165.0,71164.0,0.021088]
[1717746046427,0.49923228,71165.0,71164.0,0.221088]
[1717746046655,0.43634342,71165.0,71164.0,0.221088]
[1717746046859,0.43634342,71165.0,71164.0,0.021088]
[1717746047065,0.43634342,71165.0,71164.0,0.001088]
[1717746047753,0.43634342,71165.0,71164.0,0.021088]
[1717746048041,0.43634342,71165.0,71164.0,0.221088]
[1717746048434,0.50434342,71165.0,71164.0,0.021088]
[1717746049261,0.43634342,71165.0,71164.0,0.001088]
[1717746049858,0.43634342,71165.0,71164.0,0.021088]
[1717746050381,0.5330722,71165.0,71164.0,0.001088]
[1717746050793,0.44922038,71165.0,71164.0,0.001088]
[1717746051420,0.65840017,71165.0,71164.0,0.001088]
[1717746052274,0.61663931,71165.0,71164.0,0.001088]
[1717746061137,0.60480932,71165.0,71164.0,0.001088]
[1717746061340,0.61675254,71165.0,71164.0,0.001088]
[1717746061542,0.61675254,71165.0,71164.0,0.021088]
[1717746061834,0.61674685,71165.0,71164.0,0.021088]
[1717746062261,0.53894685,71165.0,71164.0,0.021088]
[1717746063289,0.53894685,71165.0,71164.0,0.001088]
[1717746066538,0.53894685,71165.0,71164.0,0.221088]
[1717746066979,0.53894685,71165.0,71164.0,0.001088]
[1717746068008,0.61704685,71165.0,71164.0,0.001088]
[1717746070833,0.61704685,71165.0,71164.0,0.000946]
[1717746073776,0.89808385,71165.0,71164.0,0.000946]
[1717746074184,1.24725799,71165.0,71164.0,0.000946]
[1717746074395,1.2793724,71165.0,71164.0,0.000946]
[1717746074565,1.18019826,71165.0,71164.0,0.000946]
[1717746075146,1.30600938,71165.0,71164.0,0.000946]
[1717746076259,1.38730938,71165.0,71164.0,0.000946]
[1717746077098,1.26149826,71165.0,71164.0,0.000946]
[1717746077320,1.21744632,71165.0,71164.0,0.000946]
[1717746077526,1.22921919,71165.0,71164.0,0.000946]
[1717746077727,1.26116963,71165.0,71164.0,0.000946]
[1717746077925,1.38696338,71165.0,71164.0,0.000946]
[1717746078312,1.26116963,71165.0,71164.0,0.000946]
[1717746078508,1.24716963,71165.0,71164.0,0.000946]
[1717746078716,1.23316963,71165.0,71164.0,0.000946]
[1717746078925,1.24716963,71165.0,71164.0,0.000946]
[1717746079143,1.25816963,71165.0,71164.0,0.000946]
[1717746079660,1.4032875,71165.0,71164.0,0.000946]
[1717746080083,1.25816963,71165.0,71164.0,0.000946]
[1717746080296,1.38356872,71165.0,71164.0,0.000946]
[1717746080501,1.25777497,71165.0,71164.0,0.000946]
[1717746080931,1.24377497,71165.0,71164.0,0.000946]
[1717746081369,1.25477497,71165.0,71164.0,0.000946]
[1717746081590,1.29082453,71165.0,71164.0,0.000946]
[1717746081807,1.32277497,71165.0,71164.0,0.000946]
[1717746083732,1.32132336,71165.0,71164.0,0.000946]
[1717746085399,1.24002336,71165.0,71164.0,0.000946]
[1717746086487,1.32132336,71165.0,71164.0,0.000946]
[1717746087549,1.34132336,71165.0,71164.0,0.000946]
[1717746089255,1.32132336,71165.0,71164.0,0.000946]
[1717746089470,1.34132336,71165.0,71164.0,0.000946]
[1717746090096,1.48644123,71165.0,71164.0,0.000946]
[1717746091126,1.76747823,71165.0,71164.0,0.000946]
[1717746092287,1.89331617,71165.0,71164.0,0.000946]
[1717746092666,1.7481983,71165.0,71164.0,0.000946]
[1717746092875,1.74806684,71165.0,71164.0,0.000946]
[1717746094308,1.6222289,71165.0,71164.0,0.000946]
[1717746094691,1.74808144,71165.0,71164.0,0.000946]
[1717746095084,1.68008144,71165.0,71164.0,0.000946]
[1717746095289,1.74808144,71165.0,71164.0,0.000946]
[1717746095895,1.89319931,71165.0,71164.0,0.000946]
[1717746096685,1.74808144,71165.0,71164.0,0.000946]
[1717746097335,1.6222289,71165.0,71164.0,0.000946]
[1717746100408,1.62223053,71165.0,71164.0,0.000946]
[1717746101388,1.62309053,71165.0,71164.0,0.000946]
[1717746103477,1.62310181,71165.0,71164.0,0.000946]
[1717746104344,1.76821968,71165.0,71164.0,0.000946]
[1717746106766,1.62310181,71165.0,71164.0,0.000946]
[1717746108690,1.55510181,71165.0,71164.0,0.000946]
[1717746108907,1.62310181,71165.0,71164.0,0.000946]
[1717746110470,1.32050181,71165.0,71164.0,0.000946]
[1717746110580,1.38850181,71165.0,71164.0,0.000946]
[1717746112186,1.32050181,71165.0,71164.0,0.000946]
[1717746112410,1.38850181,71165.0,71164.0,0.000946]
[1717746113236,1.38901434,71165.0,71164.0,0.000946]
[1717746115303,1.38916605,71165.0,71164.0,0.000946]
[1717746115937,1.63536605,71165.0,71164.0,0.000946]
[1717746116147,1.62753601,71165.0,71164.0,0.000946]
[1717746116360,1.68448674,71165.0,71164.0,0.000946]
[1717746120472,1.63517082,71165.0,71164.0,0.000946]
[1717746123313,1.63517082,71165.0,71156.0,0.22553612]
[1717746123314,0.421602,71157.0,71156.0,0.22553612]
[1717746123540,0.65901781,71157.0,71156.0,0.22553612]
[1717746123748,0.90687986,71157.0,71156.0,0.22553612]
[1717746123948,1.07499773,71157.0,71156.0,0.22553612]
[1717746124202,1.25695158,71157.0,71156.0,0.22553612]
[1717746124804,1.14506598,71157.0,71156.0,0.22553612]
[1717746125465,1.15906598,71157.0,71156.0,0.22553612]
[1717746126320,1.15906598,71157.0,71156.0,0.2258705]
[1717746127942,0.94594811,71157.0,71156.0,0.2258705]
[1717746128136,0.98199426,71157.0,71156.0,0.2258705]
[1717746128636,0.91399426,71157.0,71156.0,0.2258705]
[1717746129168,0.98199426,71157.0,71156.0,0.2258705]
[1717746130319,0.98219052,71157.0,71156.0,0.2258705]
[1717746131592,1.12730839,71157.0,71156.0,0.2258705]
[1717746133028,1.20810839,71157.0,71156.0,0.2258705]
[1717746133838,1.20805574,71157.0,71156.0,0.2258705]
[1717746134038,1.12725574,71157.0,71156.0,0.2258705]
[1717746134419,0.98213787,71157.0,71156.0,0.2258705]
[1717746134835,1.00769711,71157.0,71156.0,0.2268165]
[1717746135200,1.02415921,71157.0,71156.0,0.2268165]
[1717746137818,1.02415921,71157.0,71156.0,0.4554165]
[1717746137819,0.95615921,71157.0,71156.0,0.4554165]
[1717746138042,0.33211304,71157.0,71156.0,0.4819165]
[1717746138266,0.23888546,71157.0,71156.0,0.6819165]
[1717746138477,0.19691288,71157.0,71156.0,0.6819165]
[1717746141640,0.19691288,71157.0,71156.0,0.4819165]
[1717746141841,0.19691288,71157.0,71156.0,0.6819165]
[1717746142067,0.19691288,71157.0,71156.0,0.4819165]
[1717746142676,0.1849961,71157.0,71156.0,0.4819165]
[1717746142882,0.1849961,71157.0,71156.0,0.6819165]
[1717746142883,0.1967941,71157.0,71156.0,0.6819165]
[1717746145507,0.1967941,71157.0,71156.0,0.4819165]
[1717746145929,0.039798,71157.0,71156.0,0.7786165]
[1717746146809,0.039798,71157.0,71156.0,0.7686165]
[1717746147449,0.039798,71157.0,71156.0,0.4819165]
[1717746147654,0.166332,71157.0,71156.0,0.4819165]
[1717746147878,0.152332,71157.0,71156.0,0.6819165]
[1717746148094,0.164332,71157.0,71156.0,0.6819165]
[1717746148511,0.174332,71157.0,71156.0,0.6819165]
[1717746149589,0.164332,71157.0,71156.0,0.6819165]
[1717746150014,0.174332,71157.0,71156.0,0.6819165]
[1717746150836,0.174332,71157.0,71156.0,0.4819165]
[1717746151033,0.174332,71157.0,71156.0,0.4619165]
[1717746151251,0.31875093,71157.0,71156.0,0.2268165]
[1717746151468,0.34175093,71157.0,71156.0,0.2268165]
[1717746154031,0.34175093,71157.0,71156.0,0.3053165]
[1717746155415,0.197332,71157.0,71156.0,0.4627165]
[1717746157327,0.185534,71157.0,71156.0,0.4627165]
[1717746159342,0.185534,71157.0,71156.0,0.3058165]
[1717746161192,0.162534,71157.0,71156.0,0.2455165]
[1717746161379,0.162534,71157.0,71156.0,0.4922165]
[1717746163461,0.1622257,71157.0,71156.0,0.4422165]
[1717746164060,0.1852257,71157.0,71156.0,0.1768165]
[1717746171299,0.20720469,71157.0,71156.0,0.1768165]
[1717746183496,0.24918156,71157.0,71156.0,0.1768165]
[1717746184334,0.20720469,71157.0,71156.0,0.1768165]
[1717746184989,0.24921429,71157.0,71156.0,0.1768165]
[1717746185216,0.20720469,71157.0,71156.0,0.1768165]
[1717746185609,0.24921454,71157.0,71156.0,0.1768165]
[1717746187831,0.20720469,71157.0,71156.0,0.17648212]
[1717746188238,0.24921569,71157.0,71156.0,0.17648212]
[1717746188412,0.24921569,71157.0,71156.0,0.39648212]
[1717746188612,0.20720469,71157.0,71156.0,0.39648212]
[1717746188911,0.24921559,71157.0,71156.0,0.39648212]
[1717746189345,0.1852257,71157.0,71156.0,0.39648212]
[1717746190365,0.24921451,71157.0,71156.0,0.39648212]
[1717746190647,0.20720361,71157.0,71156.0,0.39648212]
[1717746190855,0.1852257,71157.0,71156.0,0.39648212]
[1717746191275,0.18420377,71157.0,71156.0,0.73268212]
[1717746191484,0.1622257,71157.0,71156.0,0.17648212]
[1717746191698,0.1852257,71157.0,71156.0,0.17648212]
[1717746192132,0.20720274,71157.0,71156.0,0.17648212]
[1717746192351,0.27023707,71157.0,71156.0,0.17648212]
[1717746192972,0.27024057,71157.0,71156.0,0.17648212]
[1717746194604,0.20720274,71157.0,71156.0,0.17648212]
[1717746195250,0.27025238,71157.0,71156.0,0.17648212]
[1717746198602,0.27111238,71157.0,71156.0,0.17648212]
[1717746201857,0.27111238,71157.0,71156.0,0.19648212]
[1717746202285,0.20806274,71157.0,71156.0,0.19648212]
[1717746202889,0.27111238,71157.0,71156.0,0.17648212]
[1717746206845,0.20806274,71157.0,71156.0,0.17648212]
[1717746207301,0.20806274,71157.0,71156.0,0.39648212]
[1717746207519,0.20806274,71157.0,71156.0,0.17648212]
[1717746207903,0.27111568,71157.0,71156.0,0.17648212]
[1717746208767,0.41553461,71157.0,71156.0,0.17648212]
[1717746210324,1.23138825,71157.0,71156.0,0.17648212]
[1717746210585,1.62008509,71157.0,71156.0,0.17648212]
[1717746211055,1.49397921,71157.0,71156.0,0.17648212]
[1717746211275,1.56527921,71157.0,71156.0,0.17648212]
[1717746211486,1.63887112,71157.0,71156.0,0.17648212]
[1717746211703,1.72220192,71157.0,71156.0,0.17648212]